fUST/lending_fUST_20241207
["ID","MTS","AMOUNT","RATE_DAILY","PERIOD"]
[344494437,1733515840276,-500.0,0.00030136,7]
[344494438,1733515840285,-575.36080994,0.00030136,7]
[344494439,1733515840295,-558.1442848,0.00030136,7]
[344494440,1733515840305,-232.665079,0.00030137,120]
[344494441,1733515840314,-666.0,0.00030609,2]
[344494442,1733515840323,-500.0,0.0003061,7]
[344494443,1733515840332,-592.6016211,0.0003061,7]
[344494444,1733515840346,-579.20444142,0.0003061,7]
[344494445,1733515840355,-311.33618544,0.00030614,2]
[344494446,1733515840365,-2665.51284203,0.00030614,2]
[344494447,1733515840374,-278.53,0.000307,2]
[344494448,1733515840383,-554.039327,0.00030709,7]
[344494449,1733515840393,-554.039327,0.00030709,7]
[344494450,1733515840402,-554.039327,0.00030709,7]
[344494451,1733515840412,-554.039327,0.00030709,7]
[344494452,1733515840421,-554.039327,0.00030709,7]
[344494453,1733515840430,-554.039327,0.00030709,7]
[344494454,1733515840440,-554.039327,0.00030709,7]
[344494455,1733515840449,-554.039327,0.00030709,7]
[344494456,1733515840458,-554.039327,0.00030709,7]
[344494457,1733515840467,-554.039327,0.00030709,7]
[344494458,1733515840476,-554.039327,0.00030709,7]
[344494459,1733515840485,-554.039327,0.00030709,7]
[344494460,1733515840498,-554.039327,0.00030709,7]
[344494461,1733515840507,-554.039327,0.00030709,7]
[344494462,1733515840516,-554.039327,0.00030709,7]
[344494463,1733515840526,-554.039327,0.00030709,7]
[344494464,1733515840535,-554.039327,0.00030709,7]
[344494465,1733515840543,-554.039327,0.00030709,7]
[344494466,1733515840554,-554.039327,0.00030709,7]
[344494467,1733515840563,-554.039332,0.00030709,7]
[344494468,1733515840573,-151.0,0.00030709,7]
[344494469,1733515840583,-151.0,0.00030709,7]
[344494470,1733515840592,-151.0,0.00030709,7]
[344494471,1733515840601,-151.0,0.00030709,7]
[344494472,1733515840610,-151.0,0.00030709,7]
[344494473,1733515840621,-151.0,0.00030709,7]
[344494474,1733515840631,-151.0,0.00030709,7]
[344494475,1733515840640,-151.0,0.00030709,7]
[344494476,1733515840649,-151.0,0.00030709,7]
[344494477,1733515840660,-151.0,0.00030709,7]
[344494478,1733515840669,-198.715534,0.00030709,7]
[344494479,1733515840679,-151.0,0.00030709,7]
[344494480,1733515840688,-151.0,0.00030709,7]
[344494481,1733515840699,-151.0,0.00030709,7]
[344494482,1733515840708,-151.0,0.00030709,7]
[344494483,1733515840718,-151.0,0.00030709,7]
[344494484,1733515840727,-151.0,0.00030709,7]
[344494485,1733515840736,-151.0,0.00030709,7]
[344494486,1733515840748,-151.0,0.00030709,7]
[344494487,1733515840757,-151.0,0.00030709,7]
[344494488,1733515840766,-500.0,0.00030709,7]
[344494489,1733515840775,-150.01,0.0003071,2]
[344494490,1733515840785,-500.0,0.0003071,7]
[344494491,1733515840794,-500.0,0.0003071,7]
[344494492,1733515840803,-500.0,0.0003071,7]
[344494493,1733515840813,-500.0,0.0003071,7]
[344494494,1733515840822,-500.0,0.0003071,7]
[344494495,1733515840831,-500.0,0.0003071,7]
[344494496,1733515840841,-500.0,0.0003071,7]
[344494497,1733515840850,-500.6146267,0.0003071,7]
[344494498,1733515840860,-151.0,0.00030711,7]
[344494499,1733515840869,-152.764275,0.00030711,7]
[344494500,1733515840879,-151.0,0.00030711,7]
[344494501,1733515840888,-188.39596,0.00030711,7]
[344494502,1733515840897,-188.39596,0.00030711,7]
[344494503,1733515840907,-151.0,0.00030711,7]
[344494504,1733515840916,-151.0,0.00030711,7]
[344494505,1733515840924,-151.0,0.00030711,7]
[344494506,1733515840934,-155.566318,0.00030711,7]
[344494507,1733515840943,-150.09,0.00030711,10]
[344494508,1733515840952,-199.71,0.00030711,10]
[344494509,1733515840961,-150.14,0.00030711,10]
[344494510,1733515840980,-150.09,0.00030711,10]
[344494511,1733515840994,-150.17,0.00030711,10]
[344494512,1733515841004,-151.0,0.00030712,7]
[344494513,1733515841014,-151.0,0.00030712,7]
[344494514,1733515841024,-151.0,0.00030712,7]
[344494515,1733515841033,-151.0,0.00030712,7]
[344494516,1733515841043,-151.0,0.00030712,7]
[344494517,1733515841052,-185.879416,0.00030712,7]
[344494518,1733515841063,-151.0,0.00030712,7]
[344494519,1733515841072,-154.515049,0.00030712,7]
[344494520,1733515841082,-151.0,0.00030712,7]
[344494521,1733515841091,-152.406146,0.00030712,7]
[344494522,1733515841101,-155.5376523,0.00030713,2]
[344494523,1733515841110,-208.78590625,0.00030713,2]
[344494524,1733515841120,-325.19579008,0.00030713,2]
[344494525,1733515841130,-306.06158957,0.00030713,2]
[344494526,1733515841139,-300.0,0.00030713,2]
[344494527,1733515841148,-500.0,0.00030713,2]
[344494528,1733515841158,-500.0,0.00030713,2]
[344494529,1733515841167,-467.01935602,0.00030713,2]
[344494530,1733515841177,-151.0,0.00030713,7]
[344494531,1733515841186,-152.171423,0.00030713,7]
[344494532,1733515841196,-151.0,0.00030713,7]
[344494533,1733515841205,-249.049424,0.00030713,7]
[344494534,1733515841215,-188.39596,0.00030713,7]
[344494535,1733515841224,-188.39596,0.00030713,7]
[344494536,1733515841234,-188.39596,0.00030713,7]
[344494537,1733515841245,-188.39596,0.00030713,7]
[344494538,1733515841255,-188.39596,0.00030713,7]
[344494539,1733515841264,-188.39596,0.00030713,7]
[344494540,1733515841273,-188.39596,0.00030713,7]
[344494541,1733515841283,-188.39596,0.00030713,7]
[344494542,1733515841292,-188.39596,0.00030713,7]
[344494543,1733515841302,-188.39596,0.00030713,7]
[344494544,1733515841311,-188.39596,0.00030713,7]
[344494545,1733515841321,-188.39596,0.00030713,7]
[344494546,1733515841330,-188.39596,0.00030713,7]
[344494547,1733515841340,-188.39596,0.00030713,7]
[344494548,1733515841350,-188.39596,0.00030713,7]
[344494549,1733515841360,-188.39596,0.00030713,7]
[344494550,1733515841369,-188.39596,0.00030713,7]
[344494551,1733515841379,-188.39595,0.00030713,7]
[344494552,1733515841389,-10957.84510093,0.00030714,2]
[344494553,1733515841398,-245.52977128,0.00030714,2]
[344494554,1733515841408,-225795.97121122,0.00030714,10]
[344494555,1733515841423,-679.71181413,0.00030714,10]
[344494596,1733516021696,210.282793,0.00013973,2]
[344494597,1733516282327,993.0,0.0002,3]
[344494598,1733516282600,991.0,0.0002,3]
[344494599,1733516283216,991.0,0.0002,3]
[344494600,1733516283532,991.0,0.0002,3]
[344494601,1733516645820,241.764009,0.00013973,2]
[344494602,1733516646076,241.764009,0.00020447,2]
[344494603,1733516745106,-160.0,0.00022,2]
[344494604,1733516745128,-241.764009,0.00026921,2]
[344494605,1733516745151,-250.0,0.00027334,2]
[344494606,1733516745172,-300.0,0.00027336,2]
[344494607,1733516745194,-300.0,0.00027336,2]
[344494608,1733516745219,-1843.8176492,0.00027337,2]
[344494609,1733516848130,1817.25373561,0.00025,10]
[344494610,1733516891254,1829.05316952,0.00021,2]
[344494614,1733516910800,3169.35003783,0.0002,2]
[344494615,1733516920645,13366.08447652,0.0001,2]
[344494616,1733516921041,4899.41316658,0.0001999,2]
[344494624,1733516922877,401.51738781,0.00015,2]
[344494625,1733516948097,-160.0,0.00022,2]
[344494626,1733516948122,-164.0,0.00022,2]
[344494627,1733516948143,-160.0,0.00023014,2]
[344494628,1733516948164,-164.0,0.00023014,2]
[344494629,1733516948185,-161.0,0.00024164,2]
[344494630,1733516948207,-323.58552361,0.00024973,2]
[344494631,1733516948228,-300.0,0.00024999,2]
[344494632,1733516948248,-10909.80173219,0.00025,7]
[344494764,1733517034129,-1148.97452242,0.00023008,2]
[344494765,1733517034142,-184.666709,0.00023108,2]
[344494766,1733517034152,-168.350149,0.00023748,2]
[344494767,1733517034161,-839.81119062,0.00024022,2]
[344494785,1733517038218,-493.10213564,0.00024022,2]
[344494786,1733517038277,-317.52799814,0.00024022,2]
[344494787,1733517038289,-1488.4122974,0.00024801,2]
[344494788,1733517038300,-175.78168779,0.000249,2]
[344494789,1733517038448,-550.97624461,0.000249,2]
[344494790,1733517038464,-940.36049907,0.000249,2]
[344494791,1733517038478,-174.80485388,0.000249,2]
[344494792,1733517038489,-300.0,0.00024999,2]
[344494793,1733517038500,-145.30010438,0.00024999,2]
[344494832,1733517043501,-354.69989562,0.00024999,2]
[344494833,1733517043511,-500.0,0.00024999,2]
[344494834,1733517043521,-500.0,0.00024999,2]
[344494835,1733517043533,-423.64777105,0.00024999,2]
[344494836,1733517043544,-500.0,0.00024999,2]
[344494837,1733517043554,-500.0,0.00024999,2]
[344494838,1733517043564,-500.0,0.00024999,2]
[344494839,1733517043574,-500.0,0.00024999,2]
[344494840,1733517043585,-529.84094421,0.00024999,2]
[344494841,1733517043595,-500.0,0.00024999,2]
[344494842,1733517043605,-500.0,0.00024999,2]
[344494843,1733517043614,-192.34450777,0.00024999,2]
[344494844,1733517043624,-500.0,0.00024999,2]
[344494845,1733517043633,-500.0,0.00024999,2]
[344494846,1733517043643,-500.0,0.00024999,2]
[344494847,1733517043653,-466.96219937,0.00024999,2]
[344494848,1733517043663,-500.0,0.00024999,2]
[344494849,1733517043674,-500.0,0.00024999,2]
[344494850,1733517043684,-500.0,0.00024999,2]
[344494851,1733517043694,-500.0,0.00024999,2]
[344494852,1733517043706,-461.00025864,0.00024999,2]
[344494853,1733517043716,-500.0,0.00024999,2]
[344494854,1733517043727,-500.0,0.00024999,2]
[344494855,1733517043737,-500.0,0.00024999,2]
[344494856,1733517043747,-500.0,0.00024999,2]
[344494857,1733517043757,-500.0,0.00024999,2]
[344494858,1733517043769,-500.0,0.00024999,2]
[344494859,1733517043779,-500.0,0.00024999,2]
[344494860,1733517043789,-500.0,0.00024999,2]
[344494861,1733517043799,-500.0,0.00024999,2]
[344494862,1733517043809,-500.0,0.00024999,2]
[344494863,1733517043819,-500.0,0.00024999,2]
[344494864,1733517044003,-500.0,0.00024999,2]
[344494865,1733517044018,-500.0,0.00024999,2]
[344494866,1733517044028,-500.0,0.00024999,2]
[344494867,1733517044037,-500.0,0.00024999,2]
[344494868,1733517044048,-500.0,0.00024999,2]
[344494869,1733517044061,-500.0,0.00024999,2]
[344494870,1733517044071,-500.0,0.00024999,2]
[344494871,1733517044081,-500.00000001,0.00024999,2]
[344494872,1733517044090,-500.0,0.00024999,2]
[344494873,1733517044101,-234.50345503,0.00024999,2]
[344494874,1733517044110,-500.0,0.00024999,2]
[344494875,1733517044119,-500.0,0.00024999,2]
[344494876,1733517044129,-500.0,0.00024999,2]
[344494877,1733517044139,-500.0,0.00024999,2]
[344494878,1733517044149,-500.0,0.00024999,2]
[344494879,1733517044158,-500.0,0.00024999,2]
[344494880,1733517044167,-500.0,0.00024999,2]
[344494881,1733517044177,-500.0,0.00024999,2]
[344494882,1733517044186,-500.0,0.00024999,2]
[344494883,1733517044196,-500.0,0.00024999,2]
[344494884,1733517044206,-500.0,0.00024999,2]
[344494885,1733517044215,-500.0,0.00024999,2]
[344494886,1733517044224,-500.0,0.00024999,2]
[344494887,1733517044233,-500.0,0.00024999,2]
[344494888,1733517044243,-500.0,0.00024999,2]
[344494889,1733517044252,-500.0,0.00024999,2]
[344494890,1733517044261,-500.0,0.00024999,2]
[344494891,1733517044271,-500.0,0.00024999,2]
[344494892,1733517044280,-500.0,0.00024999,2]
[344494893,1733517044289,-500.0,0.00024999,2]
[344494894,1733517044298,-500.0,0.00024999,2]
[344494895,1733517044307,-500.0,0.00024999,2]
[344494896,1733517044317,-500.0,0.00024999,2]
[344494897,1733517044326,-500.0,0.00024999,2]
[344494898,1733517044335,-500.0,0.00024999,2]
[344494899,1733517044344,-500.0,0.00024999,2]
[344494900,1733517044353,-500.0,0.00024999,2]
[344494901,1733517044362,-500.0,0.00024999,2]
[344494902,1733517044371,-500.0,0.00024999,2]
[344494903,1733517044380,-500.0,0.00024999,2]
[344494904,1733517044390,-500.0,0.00024999,2]
[344494905,1733517044399,-500.0,0.00024999,2]
[344494906,1733517044408,-500.0,0.00024999,2]
[344494907,1733517044418,-500.0,0.00024999,2]
[344494908,1733517044428,-500.0,0.00024999,2]
[344494909,1733517044437,-500.0,0.00024999,2]
[344494910,1733517044446,-311.76817172,0.00024999,2]
[344494911,1733517044460,-500.0,0.00024999,2]
[344494912,1733517044472,-783.6854553,0.00025,2]
[344494913,1733517044486,-4577.63603506,0.00025,2]
[344494935,1733517046246,-166.0,0.00022,2]
[344494937,1733517046256,-1483.43157749,0.00025,2]
[344494938,1733517046265,-9221.18271205,0.00025,7]
[344494943,1733517046309,-3006.42690772,0.00025,7]
[344494945,1733517154306,5000.0,0.00025,10]
[344494946,1733517162602,990.72330544,0.00025,10]
[344494947,1733517170630,631.98502887,0.00025,10]
[344494948,1733517254772,343.714106,0.00013973,2]
[344494949,1733517254987,343.714106,0.00020447,2]
[344494951,1733517875917,322.512719,0.00013973,2]
[344494952,1733517876170,322.512719,0.00020447,2]
[344494953,1733518016124,-4545.0673084,0.00021295,2]
[344494954,1733518016145,-184.666709,0.00021734,2]
[344494955,1733518016167,-1055.3319946,0.00021997,2]
[344494956,1733518016191,-161.0,0.00022,2]
[344494957,1733518016211,-300.0,0.00022033,2]
[344494958,1733518016232,-5061.53859002,0.00022034,2]
[344494961,1733518227386,165.327916,0.00020945,2]
[344494995,1733518234107,-174.05426474,0.00021933,2]
[344494997,1733518234117,-320.94685713,0.00022006,2]
[344494999,1733518234129,-684.7,0.00022006,2]
[344495004,1733518234162,-16.43641187,0.00022006,2]
[344495006,1733518234172,-300.0,0.00022033,2]
[344495008,1733518234181,-135.71200855,0.00022033,2]
[344495010,1733518234193,-164.28799145,0.00022033,2]
[344495012,1733518234203,-19838.46140998,0.00022034,2]
[344495014,1733518234213,-250.0,0.00022172,2]
[344495016,1733518234223,-12053.5910703,0.00022265,2]
[344495018,1733518234232,-1069.00727924,0.00022405,2]
[344495020,1733518234244,-1061.76566816,0.00022405,2]
[344495022,1733518234253,-191.1405671,0.00022505,2]
[344495024,1733518234263,-13987.1983159,0.00022651,2]
[344495026,1733518234273,-591.9463911,0.0002292,2]
[344495028,1733518234283,-161.0,0.00023014,2]
[344495030,1733518234292,-2130.77294735,0.00023585,2]
[344495031,1733518234302,-164.222996,0.0002364,2]
[344495032,1733518234311,-182.29,0.00023658,2]
[344495033,1733518234321,-420.0,0.00023942,2]
[344495034,1733518234330,-1800.0,0.00024,2]
[344495035,1733518234339,-164.222996,0.00024082,2]
[344495036,1733518234349,-165.0,0.00024164,2]
[344495037,1733518234359,-420.0,0.00024236,2]
[344495038,1733518234369,-164.222996,0.00024524,2]
[344495039,1733518234378,-200.0,0.00024658,2]
[344495040,1733518234387,-2130.77294735,0.00024765,2]
[344495041,1733518234397,-300.11710467,0.000249,2]
[344495042,1733518234407,-300.11710464,0.00024955,2]
[344495043,1733518234416,-164.222996,0.00024966,2]
[344495044,1733518234428,-500.0,0.00024973,2]
[344495045,1733518234438,-500.22346353,0.00024973,2]
[344495046,1733518234447,-161.09777942,0.00024973,2]
[344495047,1733518234459,-154.84837696,0.00024973,2]
[344495048,1733518234469,-500.0,0.00024973,2]
[344495049,1733518234480,-163.66754903,0.00024973,2]
[344495050,1733518234490,-200.52491241,0.00024973,2]
[344495051,1733518234500,-500.0,0.00024973,2]
[344495052,1733518234509,-500.0,0.00024973,2]
[344495053,1733518234519,-500.0,0.00024973,2]
[344495054,1733518234529,-500.6159678,0.00024973,2]
[344495055,1733518234538,-266.79229971,0.00024973,2]
[344495102,1733518238452,-233.20770029,0.00024973,2]
[344495105,1733518238462,-149.05316829,0.00024973,2]
[344495107,1733518238476,-350.94683171,0.00024973,2]
[344495109,1733518238486,-220.12877861,0.00024973,2]
[344495111,1733518238495,-262.32740219,0.00024973,2]
[344495112,1733518238504,-500.21049203,0.00024973,2]
[344495114,1733518238515,-500.65408589,0.00024973,2]
[344495115,1733518238524,-500.0,0.00024973,2]
[344495117,1733518238535,-159.37786728,0.00024973,2]
[344495120,1733518238544,-170.38122327,0.00024999,2]
[344495122,1733518238554,-205.27896774,0.00024999,2]
[344495124,1733518238563,-197.62639318,0.00024999,2]
[344495126,1733518238573,-526.05593945,0.00024999,2]
[344495128,1733518238582,-500.0,0.00024999,2]
[344495130,1733518238592,-500.0,0.00024999,2]
[344495132,1733518238601,-392.20454936,0.00024999,2]
[344495133,1733518238610,-500.0,0.00024999,2]
[344495135,1733518238619,-500.0,0.00024999,2]
[344495137,1733518238629,-500.0,0.00024999,2]
[344495139,1733518238638,-500.0,0.00024999,2]
[344495141,1733518238647,-219.75683929,0.00024999,2]
[344495144,1733518238659,-280.24316071,0.00024999,2]
[344495146,1733518238668,-500.0,0.00024999,2]
[344495148,1733518238680,-645.32797026,0.00024999,2]
[344495150,1733518238690,-500.0,0.00024999,2]
[344495152,1733518238699,-500.0,0.00024999,2]
[344495154,1733518238708,-500.0,0.00024999,2]
[344495156,1733518238718,-500.0,0.00024999,2]
[344495158,1733518238728,-500.0,0.00024999,2]
[344495160,1733518238737,-500.0,0.00024999,2]
[344495162,1733518238746,-500.0,0.00024999,2]
[344495164,1733518238755,-500.0,0.00024999,2]
[344495166,1733518238765,-500.0,0.00024999,2]
[344495168,1733518238775,-500.0,0.00024999,2]
[344495170,1733518238785,-500.0,0.00024999,2]
[344495172,1733518238794,-500.0,0.00024999,2]
[344495174,1733518238803,-500.0,0.00024999,2]
[344495176,1733518238812,-500.0,0.00024999,2]
[344495178,1733518238821,-500.0,0.00024999,2]
[344495180,1733518238831,-500.0,0.00024999,2]
[344495182,1733518238840,-500.0,0.00024999,2]
[344495184,1733518238849,-500.0,0.00024999,2]
[344495186,1733518238858,-500.0,0.00024999,2]
[344495188,1733518238867,-500.0,0.00024999,2]
[344495190,1733518238877,-500.0,0.00024999,2]
[344495192,1733518238887,-500.0,0.00024999,2]
[344495194,1733518238896,-500.0,0.00024999,2]
[344495196,1733518238905,-500.0,0.00024999,2]
[344495198,1733518238914,-500.0,0.00024999,2]
[344495200,1733518238924,-500.0,0.00024999,2]
[344495202,1733518238937,-500.0,0.00024999,2]
[344495205,1733518238948,-500.0,0.00024999,2]
[344495206,1733518238957,-500.0,0.00024999,2]
[344495208,1733518238966,-500.0,0.00024999,2]
[344495210,1733518238975,-242.01378167,0.00024999,2]
[344495213,1733518238985,-500.0,0.00024999,2]
[344495215,1733518238994,-500.0,0.00024999,2]
[344495216,1733518239003,-500.0,0.00024999,2]
[344495219,1733518239013,-500.0,0.00024999,2]
[344495220,1733518239022,-500.0,0.00024999,2]
[344495223,1733518239031,-500.0,0.00024999,2]
[344495225,1733518239042,-500.0,0.00024999,2]
[344495227,1733518239051,-500.0,0.00024999,2]
[344495229,1733518239060,-500.0,0.00024999,2]
[344495231,1733518239069,-500.0,0.00024999,2]
[344495233,1733518239078,-500.0,0.00024999,2]
[344495235,1733518239088,-300.0,0.00024999,2]
[344495237,1733518239097,-500.0,0.00024999,2]
[344495239,1733518239106,-500.0,0.00024999,2]
[344495241,1733518239118,-500.0,0.00024999,2]
[344495243,1733518239127,-300.0,0.00024999,2]
[344495245,1733518239136,-503.18691399,0.00024999,2]
[344495246,1733518239145,-40736.38807337,0.00025,2]
[344495270,1733518240320,-24161.7816373,0.00025,2]
[344495271,1733518240329,-107617.58318974,0.00025,7]
[344495272,1733518240341,-20321.50000001,0.00025,7]
[344495364,1733518243555,-1256.40051134,0.00025,7]
[344495367,1733518243567,-5409.16116665,0.00025,7]
[344495369,1733518243579,-2549.49799044,0.00025,7]
[344495371,1733518243588,-567.71794175,0.00025,2]
[344495373,1733518243597,-4632.56722267,0.00025,2]
[344495375,1733518243606,-34158.43252507,0.00025,2]
[344495377,1733518243618,-3035.70789866,0.00025,2]
[344495380,1733518243630,-36295.66995,0.00025,2]
[344495382,1733518243642,-3089.55522319,0.00025,2]
[344495384,1733518243653,-9971.99000004,0.00025,2]
[344498822,1733518404946,-400.0,0.00029,120]
[344498823,1733518404977,-2140.0,0.00029,120]
[344498824,1733518405021,-466.799,0.0002989,120]
[344498825,1733518405055,-500.0,0.00030136,120]
[344498826,1733518405077,-350.852571,0.00030136,120]
[344498827,1733518405127,-2085.09855409,0.0003,60]
[344498828,1733518405198,-149.147429,0.00030136,120]
[344498829,1733518405219,-317.651571,0.00030136,120]
[344498830,1733518405269,-174.498809,0.00030137,120]
[344498832,1733518491134,306.659267,0.00013973,2]
[344498833,1733518491328,306.659267,0.00020447,2]
[344498835,1733519052709,174.498809,0.00030137,120]
[344498836,1733519072279,447.403,0.0002884,120]
[344498837,1733519072786,447.411,0.0003004,120]
[344500411,1733519392620,309.592214,0.00013973,2]
[344500412,1733519392841,309.592214,0.00020447,2]
[344500483,1733519435302,-300.0,0.00021414,2]
[344500484,1733519435311,-300.0,0.00021414,2]
[344500485,1733519435320,-24900.0,0.00021415,2]
[344500486,1733519435329,-168.350149,0.00021641,2]
[344500487,1733519435339,-1331.73309212,0.00021702,2]
[344500488,1733519435349,-11664.30326,0.00021713,2]
[344500489,1733519435358,-418.3106034,0.00021802,2]
[344500490,1733519435368,-788.55415994,0.000219,2]
[344500491,1733519435377,-500.0,0.000219,2]
[344500492,1733519435387,-500.0,0.000219,2]
[344500493,1733519435396,-240.32467856,0.000219,2]
[344500494,1733519435406,-250.0,0.00021947,2]
[344500495,1733519435415,-594.0,0.00022,2]
[344500496,1733519435425,-511.041634,0.00022059,2]
[344500497,1733519435435,-594.0,0.00022192,2]
[344500498,1733519435445,-164.222996,0.00022977,2]
[344500499,1733519435458,-1331.73309209,0.00022981,2]
[344500500,1733519435467,-594.0,0.00023014,2]
[344500501,1733519435477,-420.0,0.00023284,2]
[344500502,1733519435487,-420.0,0.00023556,2]
[344500503,1733519435496,-213.58451149,0.000237,2]
[344500504,1733519435506,-594.0,0.00024164,2]
[344500505,1733519435515,-1331.73309209,0.0002426,2]
[344500506,1733519435525,-9811.7817663,0.00024379,2]
[344500507,1733519435535,-9811.7817663,0.00024635,2]
[344500508,1733519435544,-9811.7817663,0.00024912,2]
[344500509,1733519435554,-500.0,0.00024973,2]
[344500510,1733519435564,-500.0,0.00024973,2]
[344500511,1733519435574,-500.0,0.00024973,2]
[344500512,1733519435583,-347.48623761,0.00024973,2]
[344500513,1733519435593,-500.65902808,0.00024973,2]
[344500514,1733519435602,-502.57895296,0.00024973,2]
[344500515,1733519435612,-500.0,0.00024973,2]
[344500516,1733519435621,-500.0,0.00024973,2]
[344500517,1733519435630,-157.41184666,0.00024973,2]
[344500518,1733519435640,-500.0,0.00024999,2]
[344500519,1733519435649,-500.0,0.00024999,2]
[344500520,1733519435659,-500.0,0.00024999,2]
[344500521,1733519435668,-500.0,0.00024999,2]
[344500522,1733519435678,-500.0,0.00024999,2]
[344500523,1733519435688,-500.0,0.00024999,2]
[344500524,1733519435698,-458.0,0.00024999,2]
[344500525,1733519435709,-500.0,0.00024999,2]
[344500526,1733519435718,-454.20137816,0.00024999,2]
[344500527,1733519435728,-233.22503779,0.00024999,2]
[344500528,1733519435737,-500.0,0.00024999,2]
[344500529,1733519435746,-500.0,0.00024999,2]
[344500530,1733519435756,-500.0,0.00024999,2]
[344500531,1733519435765,-500.0,0.00024999,2]
[344500532,1733519435775,-500.0,0.00024999,2]
[344500533,1733519435785,-186.36198963,0.00024999,2]
[344500534,1733519435794,-500.0,0.00024999,2]
[344500535,1733519435803,-500.0,0.00024999,2]
[344500536,1733519435813,-500.0,0.00024999,2]
[344500537,1733519435823,-500.0,0.00024999,2]
[344500538,1733519435833,-500.0,0.00024999,2]
[344500539,1733519435843,-500.0,0.00024999,2]
[344500540,1733519435856,-500.0,0.00024999,2]
[344500541,1733519435866,-500.0,0.00024999,2]
[344500542,1733519435876,-500.0,0.00024999,2]
[344500543,1733519435886,-500.0,0.00024999,2]
[344500544,1733519435898,-500.0,0.00024999,2]
[344500545,1733519435908,-513.56515954,0.00024999,2]
[344500546,1733519435920,-500.0,0.00024999,2]
[344500547,1733519435932,-500.0,0.00024999,2]
[344500548,1733519435943,-503.34542654,0.00024999,2]
[344500549,1733519435955,-500.0,0.00024999,2]
[344500550,1733519435965,-160762.57598191,0.00025,2]
[344500551,1733519435975,-8879.0,0.00025,2]
[344500552,1733519435984,-48983.64669233,0.0002509,2]
[344500553,1733519435994,-195.59108,0.0002509,7]
[344500554,1733519436004,-195.59108,0.0002509,7]
[344500555,1733519436014,-151.0,0.0002509,7]
[344500556,1733519436024,-498.51921,0.0002509,7]
[344500557,1733519436034,-337.130746,0.0002509,7]
[344500558,1733519436043,-498.51921,0.0002509,7]
[344500559,1733519436053,-337.130746,0.0002509,7]
[344500560,1733519436063,-151.0,0.0002509,7]
[344500561,1733519436073,-174.857,0.00025218,9]
[344500562,1733519436083,-192.99069849,0.00025218,9]
[344500563,1733519436092,-587.0,0.00025317,2]
[344500564,1733519436102,-1099.3883589,0.00025521,2]
[344500565,1733519436111,-1148.36919659,0.00025521,2]
[344500566,1733519436121,-1000.0,0.00025521,2]
[344500567,1733519436130,-1000.0,0.00025521,2]
[344500568,1733519436140,-646.22748369,0.00025521,2]
[344500569,1733519436149,-1331.73309209,0.00025539,2]
[344500570,1733519436160,-594.0,0.00025775,2]
[344500571,1733519436170,-587.0,0.00025911,2]
[344500572,1733519436180,-21661.07650621,0.00026,10]
[344500573,1733519436190,-530.58264956,0.00026,2]
[344500574,1733519436200,-3430.88111034,0.00026,2]
[344500575,1733519436216,-1000.5,0.00026,31]
[344500576,1733519436227,-274.84929,0.00026,7]
[344500577,1733519436237,-392.751655,0.00026301,2]
[344500578,1733519436247,-660.0,0.00026384,2]
[344500579,1733519436257,-151.0,0.00026522,7]